fUST/lending_fUST_20251115
["ID","MTS","AMOUNT","RATE_DAILY","PERIOD"]
[393967771,1763139040722,-500.0,0.00024947,2]
[393967773,1763139040731,-500.0,0.00024947,2]
[393967775,1763139040740,-500.0,0.00024947,2]
[393967777,1763139040751,-500.0,0.00024947,2]
[393967779,1763139040759,-450.0,0.00024947,2]
[393967781,1763139040768,-500.0,0.00024947,2]
[393967783,1763139040777,-500.0,0.00024947,2]
[393967785,1763139040786,-418.25602571,0.00024947,2]
[393967800,1763139043462,-81.74397429,0.00024947,2]
[393967801,1763139043476,-500.0,0.00024947,2]
[393967802,1763139043485,-500.0,0.00024947,2]
[393967803,1763139043495,-500.0,0.00024947,2]
[393967804,1763139043504,-500.0,0.00024947,2]
[393967805,1763139043515,-600.0,0.00024947,2]
[393967806,1763139043525,-318.25602571,0.00024947,2]
[393967807,1763139043541,-181.74397429,0.00024947,2]
[393967808,1763139043553,-500.0,0.00024947,2]
[393967809,1763139043563,-500.0,0.00024947,2]
[393967810,1763139043573,-500.0,0.00024947,2]
[393967811,1763139043583,-523.61317401,0.00024947,2]
[393967812,1763139043592,-500.0,0.00024947,2]
[393967813,1763139043602,-500.0,0.00024947,2]
[393967814,1763139043612,-500.0,0.00024947,2]
[393967815,1763139043625,-113.78400366,0.00024947,2]
[393967836,1763139046503,-330.0,0.00024947,2]
[393967837,1763139046515,-56.21599634,0.00024947,2]
[393967838,1763139046525,-500.0,0.00024947,2]
[393967839,1763139046534,-500.0,0.00024947,2]
[393967840,1763139046546,-500.0,0.00024947,2]
[393967841,1763139046555,-500.0,0.00024947,2]
[393967842,1763139046564,-500.0,0.00024947,2]
[393967843,1763139046573,-43.66048816,0.00024947,2]
[393967845,1763139055347,2934.6568677,0.00023968,2]
[393967846,1763139068379,250.0,0.00039431,10]
[393967847,1763139068899,250.0,0.00039431,10]
[393967848,1763139069460,250.0,0.00039431,10]
[393967849,1763139069730,295.170757,0.00039431,10]
[393967851,1763139076110,160.0,0.00032878,120]
[393967852,1763139079244,326.48,0.00023551,2]
[393967853,1763139115301,3680.01,0.00025,7]
[393967856,1763139159610,322.33,0.00023574,2]
[393967857,1763139160021,162.26,0.00025,14]
[393967859,1763139239371,318.23,0.00023455,2]
[393967860,1763139248998,200.0,0.00024658,15]
[393967861,1763139274343,213.596406,0.00030137,120]
[393967862,1763139294959,162.26,0.00025,14]
[393967863,1763139318746,314.18,0.00023468,2]
[393967864,1763139341563,151.0,0.00024947,7]
[393967865,1763139344296,151.0,0.00024947,7]
[393967866,1763139347079,151.0,0.00024947,7]
[393967867,1763139350204,151.0,0.00024947,7]
[393967868,1763139366449,195.802931,0.00024947,7]
[393967869,1763139368175,195.802931,0.00024947,7]
[393967870,1763139370274,195.802931,0.00024947,7]
[393967871,1763139372895,195.802931,0.00024947,7]
[393967872,1763139395628,160.0,0.00032878,120]
[393967873,1763139398220,310.18,0.00023463,2]
[393967874,1763139478194,306.23,0.00023448,2]
[393967875,1763139519332,151.0,0.0002496,7]
[393967876,1763139521695,151.0,0.0002496,7]
[393967877,1763139524107,151.0,0.0002496,7]
[393967882,1763139557933,302.33,0.00023567,2]
[393967884,1763139575223,400.38245665,0.00032878,120]
[393967885,1763139591927,161.109505,0.00024927,7]
[393967886,1763139593886,161.109505,0.00024927,7]
[393967887,1763139596081,161.109505,0.00024927,7]
[393967888,1763139598444,161.109505,0.00024927,7]
[393967890,1763139636960,298.48,0.0002355,2]
[393967891,1763139660277,156.642345,0.00024927,7]
[393967892,1763139662704,156.642345,0.00024927,7]
[393967893,1763139664606,156.642345,0.00024927,7]
[393967894,1763139666446,156.642345,0.00024927,7]
[393967895,1763139695267,151.0,0.00024927,7]
[393967896,1763139697604,151.0,0.00024927,7]
[393967897,1763139700208,294.097568,0.00024927,7]
[393967898,1763139703879,14566.5937403,0.00022,2]
[393967899,1763139703907,19895.80570406,0.00022,2]
[393967900,1763139703933,8121.60055564,0.00022,2]
[393967902,1763139874809,151.0,0.00024925,7]
[393967903,1763139875101,151.0,0.00024947,7]
[393967904,1763139876385,151.0,0.00024925,7]
[393967905,1763139876924,151.0,0.00024947,7]
[393967906,1763139939342,294.68,0.00021926,2]
[393967907,1763139939743,589.37,0.00022461,2]
[393967908,1763139940173,884.05,0.00022995,2]
[393967909,1763139953626,-330.58221866,0.0002353,2]
[393967910,1763139961012,151.0,0.00024915,7]
[393967911,1763139963484,151.0,0.00024915,7]
[393967912,1763139966043,151.0,0.00024915,7]
[393967913,1763139968178,241.277512,0.00024915,7]
[393967914,1763139989867,151.0,0.00024914,7]
[393967915,1763139990241,151.0,0.00024915,7]
[393967916,1763139993898,151.0,0.00024914,7]
[393967917,1763139994277,151.0,0.00024915,7]
[393967918,1763139995647,151.0,0.00024914,7]
[393967919,1763139996085,151.0,0.00024915,7]
[393967920,1763140018394,267.97,0.00021907,2]
[393967921,1763140018843,535.95,0.00022441,2]
[393967922,1763140019229,803.92,0.00022975,2]
[393967923,1763140054211,151.0,0.0002491,7]
[393967924,1763140054573,151.0,0.00024915,7]
[393967925,1763140097795,247.51,0.00021914,2]
[393967926,1763140098234,495.02,0.00022449,2]
[393967927,1763140098623,742.53,0.00022983,2]
[393967928,1763140123986,168.69136,0.0002395,61]
[393967929,1763140124350,168.69136,0.0002395,120]
[393967930,1763140176623,228.61,0.00021806,2]
[393967931,1763140177033,457.22,0.00022338,2]
[393967932,1763140177564,685.83,0.0002287,2]
[393967933,1763140177864,914.44,0.00023402,2]
[393968078,1763140234367,-182.14182925,0.00023734,2]
[393968079,1763140234376,-1143.05,0.00023933,2]
[393968080,1763140234386,-168.69136,0.0002395,2]
[393968081,1763140234395,-1371.66,0.00024465,2]
[393968082,1763140234405,-300.0,0.00024813,2]
[393968083,1763140234414,-160.0,0.00024813,2]
[393968084,1763140234423,-102.83323302,0.00024813,2]
[393968085,1763140234434,-67.16676698,0.00024813,2]
[393968086,1763140234443,-500.0,0.00024813,2]
[393968087,1763140234452,-306.48501406,0.00024813,2]
[393968088,1763140234463,-226.85669358,0.00024813,2]
[393968089,1763140234472,-500.0,0.00024813,2]
[393968090,1763140234481,-334.02207456,0.00024813,2]
[393968091,1763140234490,-500.0,0.00024815,2]
[393968092,1763140234499,-39459.7436681,0.00024815,2]
[393968093,1763140234508,-477.0,0.00024824,2]
[393968094,1763140234517,-10098.65247037,0.00024825,2]
[393968095,1763140234539,-517066.99991214,0.00024825,2]
[393968096,1763140234659,151.0,0.00024825,7]
[393968097,1763140234801,151.0,0.000249,7]
[393968115,1763140238270,-890.15205145,0.00024825,2]
[393968117,1763140238283,-281.00478041,0.00024825,2]
[393968122,1763140238325,-4819.5,0.00024825,2]
[393968124,1763140238337,-16844.9999999,0.00024825,2]
[393968127,1763140238352,-338.84055212,0.00024825,2]
[393968131,1763140238383,-5793.38452007,0.00024825,2]
[393968133,1763140238395,-28183.34088253,0.00024825,2]
[393968135,1763140238407,-401.2941972,0.00024825,2]
[393968137,1763140238419,-396.88751354,0.00024825,2]
[393968139,1763140238430,-291.300155,0.00024825,2]
[393968236,1763140240430,-429.42624312,0.00024825,2]
[393968239,1763140240441,-1724.87284989,0.00024825,2]
[393968241,1763140240452,-250.86269329,0.00024825,2]
[393968248,1763140241261,-4594.25246619,0.00024825,2]
[393968249,1763140241273,-16488.49823964,0.00024825,2]
[393968267,1763140243742,-30109.43775027,0.00024825,2]
[393968270,1763140246514,-250996.29272287,0.00024825,2]
[393968271,1763140246524,-208.02,0.00024848,2]
[393968272,1763140246534,-500.0,0.00024873,2]
[393968273,1763140246543,-500.0,0.00024873,2]
[393968274,1763140246553,-506.30280005,0.00024873,2]
[393968275,1763140246562,-500.0,0.00024873,2]
[393968276,1763140246571,-500.0,0.00024873,2]
[393968277,1763140246581,-500.0,0.00024873,2]
[393968278,1763140246590,-500.0,0.00024873,2]
[393968279,1763140246599,-500.0,0.00024873,2]
[393968280,1763140246608,-500.0,0.00024873,2]
[393968281,1763140246618,-500.0,0.00024873,2]
[393968282,1763140246627,-230039.38447708,0.000249,2]
[393968283,1763140246724,-35142.23895575,0.000249,2]
[393968284,1763140253673,167.51,0.00021818,2]
[393968285,1763140254064,335.02,0.0002235,2]
[393968286,1763140254470,502.53,0.00022882,2]
[393968287,1763140255115,670.04,0.00023414,2]
[393968288,1763140262096,151.0,0.00024825,7]
[393968289,1763140262443,151.0,0.000249,7]
[393968290,1763140262927,151.0,0.00024916,7]
[393968291,1763140265456,151.0,0.00024825,7]
[393968292,1763140265673,151.0,0.000249,7]
[393968293,1763140266031,151.0,0.00024916,7]
[393968294,1763140267570,151.0,0.00024825,7]
[393968295,1763140268142,151.0,0.000249,7]
[393968296,1763140332737,150.0,0.00021817,2]
[393968297,1763140333230,292.38,0.00022349,2]
[393968298,1763140333707,438.57,0.00022882,2]
[393968299,1763140334153,584.76,0.00023414,2]
[393968300,1763140353461,151.0,0.000249,7]
[393968301,1763140353554,151.0,0.00024937,7]
[393968302,1763140353849,151.0,0.000249,7]
[393968303,1763140354384,151.0,0.00024937,7]
[393968304,1763140382447,151.0,0.000249,7]
[393968305,1763140383170,151.0,0.00024937,7]
[393968306,1763140384504,151.0,0.000249,7]
[393968307,1763140384950,151.0,0.00024937,7]
[393968308,1763140386901,151.0,0.000249,7]
[393968309,1763140387388,151.0,0.00024937,7]
[393968310,1763140411917,150.0,0.00022063,2]
[393968311,1763140412309,255.07,0.00022601,2]
[393968312,1763140412782,382.6,0.00023139,2]
[393968313,1763140434389,172.46673888,0.00024937,7]
[393968314,1763140492146,150.0,0.00021806,2]
[393968315,1763140492349,151.0,0.00024812,7]
[393968316,1763140492696,235.02,0.00022338,2]
[393968317,1763140492729,151.0,0.000249,7]
[393968318,1763140493006,352.53,0.00022869,2]
[393968319,1763140493040,151.0,0.00024937,7]
[393968320,1763140493400,22.27049815,0.00023401,2]
[393968321,1763140493431,447.76950185,0.00023401,2]
[393968322,1763140494754,151.0,0.00024812,7]
[393968323,1763140495251,151.0,0.000249,7]
[393968324,1763140495621,151.0,0.00024937,7]
[393968325,1763140496663,151.0,0.00024812,7]
[393968326,1763140497626,151.0,0.000249,7]
[393968327,1763140498078,151.0,0.00024937,7]
[393968328,1763140499450,151.0,0.00024812,7]
[393968329,1763140499848,161.752081,0.000249,7]
[393968330,1763140557969,151.0,0.00024715,7]
[393968331,1763140558304,151.0,0.000249,7]
[393968332,1763140558633,151.0,0.00024924,7]
[393968333,1763140571674,150.0,0.00021826,2]
[393968334,1763140572110,204.28,0.00022358,2]
[393968335,1763140572526,306.42,0.00022891,2]
[393968336,1763140582271,151.0,0.00024715,7]
[393968337,1763140583224,151.0,0.000249,7]
[393968338,1763140583583,151.0,0.00024924,7]
[393968340,1763140586357,151.0,0.00024715,7]
[393968341,1763140586739,151.0,0.000249,7]
[393968342,1763140587531,151.0,0.00024924,7]
[393968344,1763140632281,151.0,0.000247,8]
[393968346,1763140650421,150.0,0.00021824,2]
[393968347,1763140651042,187.46,0.00022357,2]
[393968348,1763140651557,281.2,0.00022889,2]
[393968366,1763140673664,169.8126136,0.00011815,2]
[393968367,1763140700634,-374.93,0.00023421,2]
[393968368,1763140728308,150.0,0.00021819,2]
[393968369,1763140728744,162.17,0.00022351,2]
[393968370,1763140729149,243.26,0.00022883,2]
[393968371,1763140729561,324.34,0.00023416,2]
[393968372,1763140805931,150.0,0.00021818,2]
[393968373,1763140806349,150.0,0.0002235,2]
[393968374,1763140806801,209.67,0.00022882,2]
[393968375,1763140807223,279.56,0.00023415,2]
[393968376,1763140808663,400.38245665,0.00032878,120]
[393968377,1763140851735,151.0,0.00024715,7]
[393968378,1763140882842,150.0,0.0002182,2]
[393968379,1763140883253,150.0,0.00022352,2]
[393968380,1763140883652,179.53,0.00022884,2]
[393968381,1763140884055,239.38,0.00023416,2]
[393968382,1763140903600,681.597,0.0002471,7]
[393968383,1763140903646,182.435,0.0002471,7]
[393968384,1763140957793,150.0,0.00021819,2]
[393968385,1763140958225,150.0,0.00022351,2]
[393968386,1763140958630,152.08,0.00022883,2]
[393968387,1763140959040,202.78,0.00023415,2]
[393968388,1763141013765,162.26,0.000247,14]
[393968390,1763141033293,150.0,0.00022029,2]
[393968391,1763141033691,150.0,0.00022567,2]
[393968392,1763141034127,150.0,0.00023104,2]
[393968393,1763141085594,3312.01,0.000247,7]
[393968394,1763141106761,150.0,0.00022028,2]
[393968395,1763141107179,150.0,0.00022565,2]
[393968396,1763141107606,150.0,0.00023102,2]
[393968397,1763141147467,162.26,0.000247,14]
[393968398,1763141177941,150.0,0.00022034,2]
[393968399,1763141178341,150.0,0.00022571,2]
[393968400,1763141178741,150.0,0.00023109,2]
[393968401,1763141182437,151.0,0.00024672,7]
[393968402,1763141182797,151.0,0.00024672,7]
[393968403,1763141183358,163.09,0.00024673,7]
[393968404,1763141193627,768.12,0.00026,6]
[393968407,1763141216755,160.0,0.00032878,120]
[393968408,1763141220556,2980.8,0.000247,7]
[393968410,1763141249621,150.0,0.00022064,2]
[393968411,1763141250017,150.0,0.00022602,2]
[393968412,1763141250445,150.0,0.0002314,2]
[393968413,1763141253446,151.0,0.00024671,7]
[393968414,1763141253764,151.0,0.00024671,7]
[393968415,1763141254245,151.0,0.00024673,7]
[393968416,1763141254550,248.1815,0.00024698,7]
[393968418,1763141281629,162.26,0.000247,14]
[393968419,1763141281955,151.0,0.00024671,7]
[393968420,1763141282271,151.0,0.00024671,7]
[393968421,1763141283141,151.0,0.00024673,7]
[393968422,1763141283225,151.0,0.00024698,7]
[393968423,1763141283744,151.0,0.00024714,7]
[393968424,1763141284094,151.0,0.00024671,7]
[393968425,1763141284481,187.85,0.00024671,7]
[393968431,1763141319105,7044.45451707,0.0001,2]
[393968432,1763141319794,150.0,0.00021944,2]
[393968433,1763141319987,750.0,0.00039415,14]
[393968434,1763141320191,150.0,0.00022479,2]
[393968435,1763141320587,150.0,0.00023014,2]
[393968436,1763141320854,499.99578187,0.00039415,15]
[393968437,1763141356064,2682.72,0.000244,7]
[393968440,1763141387697,151.0,0.00024658,7]
[393968441,1763141388091,151.0,0.00024658,7]
[393968442,1763141388422,151.0,0.00024658,7]
[393968443,1763141388776,151.0,0.00024698,7]
[393968444,1763141389129,151.0,0.0002481,7]
[393968445,1763141389540,150.0,0.00021923,2]
[393968446,1763141389966,150.0,0.00022458,2]
[393968447,1763141390001,151.0,0.00024658,7]
[393968448,1763141390386,150.0,0.00022993,2]
[393968451,1763141415645,162.26,0.000244,14]
[393968474,1763141432546,-150.0,0.00023527,2]
[393968475,1763141432555,-198.14102188,0.00023611,2]
[393968477,1763141432565,-115.46081341,0.00024085,2]
[393968481,1763141432600,-34.53918659,0.00024085,2]
[393968483,1763141432609,-3666.30197552,0.00024295,2]
[393968485,1763141432618,-335.35906938,0.00024373,2]
[393968487,1763141432627,-500.0,0.00024373,2]
[393968488,1763141432636,-500.0,0.00024373,2]
[393968490,1763141432645,-532.88392543,0.00024373,2]
[393968492,1763141432654,-500.0,0.00024373,2]
[393968494,1763141432663,-300.0,0.00024374,2]
[393968495,1763141432672,-1200.0,0.00024393,2]
[393968496,1763141432681,-300.0,0.00024394,2]
[393968497,1763141432689,-300.0,0.00024394,2]
[393968498,1763141432698,-300.0,0.00024394,2]
[393968499,1763141432707,-500.0,0.00024395,2]
[393968500,1763141432715,-500.0,0.00024395,2]
[393968501,1763141432724,-629.20171921,0.00024395,2]
[393968502,1763141432733,-500.0,0.00024395,2]
[393968503,1763141432741,-373.37958585,0.00024395,2]
[393968504,1763141432750,-500.0,0.00024395,2]
[393968505,1763141432759,-500.0,0.00024395,2]
[393968506,1763141432769,-500.0,0.00024395,2]
[393968507,1763141432777,-500.0,0.00024395,2]
[393968508,1763141432787,-500.0,0.00024395,2]
[393968509,1763141432796,-629.20171921,0.00024395,2]
[393968510,1763141432805,-500.0,0.00024395,2]
[393968511,1763141432814,-500.0,0.00024395,2]
[393968512,1763141432825,-401.55300119,0.00024395,2]
[393968691,1763141434559,400.38245665,0.00032878,120]
[393968809,1763141456865,150.0,0.00022078,2]
[393968810,1763141457246,150.0,0.00022616,2]
[393968811,1763141457639,150.0,0.00023154,2]
[393968812,1763141471032,924.3,0.00024384,10]
[393968813,1763141483015,770.25,0.00024384,10]
[393968814,1763141492824,2414.45,0.000244,7]
[393968815,1763141494322,641.87,0.00024384,10]
[393968816,1763141507702,534.9,0.00024384,10]
[393968817,1763141518104,445.75,0.00024384,10]
[393968818,1763141521480,150.0,0.00022078,2]
[393968819,1763141522693,150.0,0.00022617,2]
[393968820,1763141523552,150.0,0.00023155,2]
[393968821,1763141528598,371.45,0.00024384,10]
[393968822,1763141540831,309.55,0.00024384,10]
[393968823,1763141548988,162.26,0.000244,14]
[393968824,1763141553112,257.95,0.00024384,10]
[393968825,1763141563502,214.96,0.00024384,10]
[393968826,1763141572816,858.6712842,0.0002339,2]
[393968827,1763141574057,179.14,0.00024384,10]
[393968828,1763141587363,895.7,0.00024383,10]
[393968829,1763141598260,150.0,0.00022081,2]
[393968830,1763141598674,150.0,0.00022619,2]
[393968831,1763141599067,150.0,0.00023158,2]
[393968833,1763141627786,415.592703,0.00023391,2]
[393968834,1763141629171,2173.01,0.000244,7]
[393968835,1763141670687,150.0,0.00022085,2]
[393968836,1763141671095,150.0,0.00022624,2]
[393968837,1763141671486,150.0,0.00023163,2]
[393968838,1763141681979,162.26,0.000244,14]
[393968848,1763141742806,150.0,0.00021989,2]
[393968849,1763141743198,150.0,0.00022525,2]
[393968850,1763141743606,150.0,0.00023062,2]
[393968851,1763141764600,1955.71,0.000244,7]
[393968852,1763141770392,150.0,0.00023421,2]
[393968854,1763141776842,724.432192,0.00013699,2]
[393968855,1763141777505,724.432192,0.00020187,2]
[393968856,1763141811849,150.0,0.00021944,2]
[393968857,1763141812338,150.0,0.00022479,2]
[393968858,1763141812624,150.0,0.00023015,2]
[393968859,1763141878032,150.0,0.00021946,2]
[393968860,1763141878484,150.0,0.00022481,2]
[393968861,1763141878885,150.0,0.00023017,2]
[393968862,1763141900466,1760.14,0.000244,7]
[393968863,1763141943176,150.0,0.00021964,2]
[393968865,1763142036457,1584.12,0.000244,7]
[393968866,1763142056927,400.38245665,0.00032878,120]
[393968867,1763142171848,1425.71,0.000244,7]
[393968871,1763142307831,1283.14,0.000244,7]
[393968872,1763142444208,1154.82,0.000243,7]
[393968873,1763142444514,1154.82,0.000262,7]
[393968878,1763142579777,923.86,0.000243,7]
[393968879,1763142580064,923.86,0.000262,7]
[393968880,1763142629034,1350.00665846,0.00023204,4]
[393969046,1763142633026,-194.17820144,0.00023644,2]
[393969047,1763142633035,-632.42065062,0.00023694,2]
[393969048,1763142633044,-3208.01422858,0.00024166,2]
[393969049,1763142633053,-278.39348006,0.00024263,2]
[393969189,1763142637738,-21.60651994,0.00024263,2]
[393969190,1763142637748,-274.65741722,0.00024263,2]
[393969191,1763142637761,-25.34258278,0.00024263,2]
[393969192,1763142637771,-278.38287354,0.00024263,2]
[393969193,1763142638839,333506.29550709,0.00039412,5]
[393969201,1763142642943,-21.61712646,0.00024263,2]
[393969202,1763142642952,-300.0,0.00024263,2]
[393969203,1763142642963,-1200.0,0.00024263,2]
[393969204,1763142642973,-44782.18515134,0.00024264,2]
[393969205,1763142642985,-5396.0609,0.00024264,2]
[393969206,1763142643019,150.0,0.00023421,2]
[393969209,1763142644212,-804.7719191,0.00024264,2]
[393969210,1763142644224,-1477.0780809,0.00024264,2]
[393969220,1763142648095,150.0,0.00022081,2]
[393969221,1763142648351,150.0,0.0002262,2]
[393969222,1763142648725,150.0,0.00023158,2]
[393969223,1763142715197,739.09,0.000243,7]
[393969224,1763142715501,739.09,0.000262,7]
[393969225,1763142716642,150.0,0.00021944,2]
[393969226,1763142717035,150.0,0.00022479,2]
[393969227,1763142717441,150.0,0.00023015,2]
[393969228,1763142771164,5176.82781755,0.00023204,4]
[393969229,1763142783004,150.0,0.00021962,2]
[393969230,1763142783405,150.0,0.00022498,2]
[393969231,1763142850879,591.27,0.000243,7]
[393969232,1763142851175,591.27,0.000262,7]
[393969239,1763142986918,473.02,0.000243,7]
[393969240,1763142987532,473.02,0.000262,7]
[393969241,1763143058441,216.72958789,0.00023347,2]
[393969242,1763143090303,160.197304,0.00030137,120]
[393969243,1763143122777,378.41,0.000243,7]
[393969244,1763143123076,378.41,0.000262,7]
[393969245,1763143217543,241.11,0.00023349,30]
[393969246,1763143258177,302.73,0.000243,7]
[393969247,1763143258498,302.73,0.000262,7]
[393969248,1763143303624,545.278,0.00023446,3]
[393969249,1763143303662,182.435,0.00023446,3]
[393969250,1763143309060,156.0,0.00025,7]
[393969251,1763143309365,156.0,0.00024932,7]
[393969252,1763143309676,156.0,0.0002589,7]
[393969253,1763143311992,388.94,0.00023571,3]
[393969254,1763143323987,194.47,0.00023571,3]
[393969255,1763143335052,583.43,0.00023571,3]
[393969256,1763143339639,2807.01244999,0.000234,2]
[393969257,1763143393758,242.18,0.000235,7]
[393969258,1763143394065,242.18,0.000261,7]
[393969259,1763143409513,157.0,0.00025,7]
[393969260,1763143409937,157.0,0.0002589,7]
[393969352,1763143509399,157.0,0.00025,7]
[393969353,1763143509712,157.0,0.0002589,7]
[393969358,1763143531083,193.75,0.000235,7]
[393969359,1763143531191,193.75,0.00026,7]
[393969360,1763143531489,916.04507385,0.00023399,2]
[393969361,1763143531517,1540.0908199,0.00023399,2]
[393969371,1763143568835,-369.4049583,0.00023444,2]
[393969372,1763143609070,158.0,0.00025,7]
[393969373,1763143649326,6059.59,0.00023434,10]
[393969374,1763143662024,5049.66,0.00023434,10]
[393969375,1763143665315,155.0,0.000235,7]
[393969376,1763143665618,155.0,0.000254,7]
[393969379,1763143673961,4208.05,0.00023434,10]
[393969380,1763143675192,-300.0,0.00023443,2]
[393969381,1763143675224,-1200.0,0.00023443,2]
[393969392,1763143683551,300.0,0.00023443,2]
[393969402,1763143686030,394917.78008083,0.0003941,45]
[393969405,1763143686549,3506.71,0.00023434,10]
[393969415,1763143696929,2922.26,0.00023434,10]
[393969426,1763143710307,2435.22,0.00023434,10]
[393969427,1763143715229,2149.11890704,0.00023344,2]
[393969428,1763143723061,2029.35,0.00023435,10]
[393969429,1763143729593,5000.0,0.0002626,6]
[393969430,1763143735403,2269.44,0.00023434,10]
[393969431,1763143743449,300.0,0.00023442,2]
[393969432,1763143747983,2066.58,0.00023434,10]
[393969433,1763143752569,5000.0,0.0002626,6]
[393969434,1763143760587,1816.62872493,0.0002626,6]
[393969435,1763143761534,2254.81,0.00023434,10]
[393969436,1763143774508,2995.4,0.00023434,10]
[393969437,1763143775849,5000.0,0.0002626,6]
[393969438,1763143787882,2496.17,0.00023434,10]
[393969439,1763143790883,5000.0,0.0002626,6]
[393969440,1763143798314,2154.97,0.00023434,10]
[393969441,1763143798638,5000.0,0.0002626,6]
[393969442,1763143800575,155.0,0.000235,7]
[393969443,1763143800874,155.0,0.000254,7]
[393969444,1763143801705,300.0,0.00023442,2]
[393969445,1763143802632,300.0,0.00023442,2]
[393969446,1763143803222,300.0,0.00023442,2]
[393969447,1763143803570,300.0,0.00023442,2]
[393969448,1763143806594,466.0,0.00023442,2]
[393969449,1763143806648,5000.0,0.0002626,6]
[393969450,1763143811004,1795.81,0.00023434,10]
[393969451,1763143816282,2558.21798823,0.00023344,2]
[393969452,1763143821492,1496.51,0.00023434,10]
[393969453,1763143822124,5000.0,0.0002626,6]
[393969454,1763143830409,4287.04990993,0.0002626,6]
[393969459,1763143831780,500.0,0.00023442,2]
[393969460,1763143831816,473.15466239,0.00023442,2]
[393969461,1763143831864,581.2197147,0.00023442,2]
[393969472,1763143833687,-314.11079535,0.00023443,2]
[393969473,1763143834517,1247.09,0.00023434,10]
[393969586,1763143843395,-193.46025832,0.00023444,2]
[393969588,1763143843406,-3233.83974169,0.00023444,2]
[393969821,1763143845886,5000.0,0.0002626,6]
[393969938,1763143846997,1039.24,0.00023561,10]
[393969967,1763143847267,500.0,0.00023442,2]
[393969972,1763143847300,500.0,0.00023442,2]
[393969977,1763143847334,500.0,0.00023442,2]
[393969985,1763143847408,500.0,0.00023442,2]
[393969992,1763143847463,500.0,0.00023442,2]
[393970000,1763143847536,500.0,0.00023442,2]
[393970010,1763143847624,500.0,0.00023442,2]
[393970015,1763143847660,500.0,0.00023442,2]
[393970035,1763143847843,500.0,0.00023442,2]
[393970039,1763143847878,500.0,0.00023442,2]
[393970044,1763143847927,500.0,0.00023442,2]
[393970048,1763143847972,500.0,0.00023442,2]
[393970053,1763143848008,280.40146378,0.00023442,2]
[393970057,1763143848041,500.0,0.00023442,2]